fUSD/lending_fUSD_20250513
["ID","MTS","AMOUNT","RATE_DAILY","PERIOD"]
[360910049,1747140470365,-400.0,0.00010999,2]
[360910050,1747140470391,-275.14310282,0.00010999,2]
[360910051,1747140470415,-400.0,0.00010999,2]
[360910052,1747140470439,-400.0,0.00010999,2]
[360910053,1747140470464,-400.0,0.00010999,2]
[360910054,1747140470490,-400.0,0.00010999,2]
[360910055,1747140470514,-400.0,0.00010999,2]
[360910056,1747140470540,-1098.99,0.00010999,2]
[360910057,1747140470564,-2426.62,0.00010999,2]
[360910058,1747140470587,-400.0,0.00010999,2]
[360910059,1747140470612,-400.0,0.00010999,2]
[360910060,1747140470636,-400.0,0.00010999,2]
[360910061,1747140470661,-400.0,0.00010999,2]
[360910062,1747140470685,-400.0,0.00010999,2]
[360910063,1747140470709,-1645.35,0.00010999,2]
[360910064,1747140470733,-500.0,0.00010999,2]
[360910065,1747140470756,-500.0,0.00010999,2]
[360910066,1747140470780,-500.0,0.00010999,2]
[360910067,1747140470804,-494.88,0.00010999,2]
[360910068,1747140470828,-400.0,0.00010999,2]
[360910069,1747140470852,-1367.92,0.00010999,2]
[360910070,1747140470882,-400.0,0.00010999,2]
[360910071,1747140470906,-400.0,0.00010999,2]
[360910072,1747140470930,-400.0,0.00010999,2]
[360910073,1747140470956,-400.0,0.00010999,2]
[360910074,1747140470980,-542.12715333,0.00010999,2]
[360910075,1747140471004,-1755.27,0.00010999,2]
[360910076,1747140471030,-69137.3,0.00010999,2]
[360910077,1747140471054,-400.0,0.00010999,2]
[360910078,1747140471078,-400.0,0.00010999,2]
[360910079,1747140471102,-400.0,0.00010999,2]
[360910080,1747140471126,-427.04,0.00010999,2]
[360910081,1747140471151,-995.83,0.00010999,2]
[360910082,1747140471174,-400.0,0.00010999,2]
[360910083,1747140471201,-906.73,0.00010999,2]
[360910084,1747140471225,-400.0,0.00010999,2]
[360910085,1747140471248,-540.0,0.00010999,2]
[360910086,1747140471272,-400.0,0.00010999,2]
[360910087,1747140471296,-1518.13,0.00010999,2]
[360910088,1747140471319,-400.0,0.00010999,2]
[360910089,1747140471343,-400.0,0.00010999,2]
[360910090,1747140471366,-400.0,0.00010999,2]
[360910091,1747140471390,-400.0,0.00010999,2]
[360910092,1747140471414,-400.0,0.00010999,2]
[360910093,1747140471438,-400.0,0.00010999,2]
[360910094,1747140471464,-400.0,0.00010999,2]
[360910095,1747140471489,-400.0,0.00010999,2]
[360910096,1747140471513,-400.0,0.00010999,2]
[360910097,1747140471538,-400.0,0.00010999,2]
[360910098,1747140471562,-400.0,0.00010999,2]
[360910099,1747140471586,-605.81,0.00010999,2]
[360910100,1747140471610,-400.0,0.00010999,2]
[360910101,1747140471634,-400.0,0.00010999,2]
[360910102,1747140471657,-2239.41,0.00010999,2]
[360910103,1747140471680,-1096.2,0.00010999,2]
[360910104,1747140471704,-400.0,0.00010999,2]
[360910105,1747140471730,-422.04,0.00010999,2]
[360910106,1747140471753,-400.0,0.00010999,2]
[360910107,1747140471776,-400.0,0.00010999,2]
[360910108,1747140471799,-400.0,0.00010999,2]
[360910109,1747140471822,-24589.86,0.00010999,2]
[360910110,1747140471846,-400.0,0.00010999,2]
[360910111,1747140471871,-293.07161677,0.00010999,2]
[360910112,1747140471894,-400.0,0.00010999,2]
[360910113,1747140471918,-400.0,0.00010999,2]
[360910114,1747140471942,-718.64,0.00010999,2]
[360910115,1747140471967,-402.93,0.00010999,2]
[360910116,1747140471990,-400.0,0.00010999,2]
[360910117,1747140472013,-1261.69,0.00010999,2]
[360910118,1747140472037,-400.0,0.00010999,2]
[360910119,1747140472061,-400.0,0.00010999,2]
[360910120,1747140472084,-400.0,0.00010999,2]
[360910121,1747140472108,-400.0,0.00010999,2]
[360910122,1747140472132,-400.0,0.00010999,2]
[360910123,1747140472155,-400.0,0.00010999,2]
[360910124,1747140472178,-400.0,0.00010999,2]
[360910125,1747140472204,-400.0,0.00010999,2]
[360910126,1747140472227,-400.0,0.00010999,2]
[360910127,1747140472252,-2027.17,0.00010999,2]
[360910128,1747140472275,-400.0,0.00010999,2]
[360910129,1747140472299,-1353.14,0.00010999,2]
[360910130,1747140472322,-400.0,0.00010999,2]
[360910131,1747140472345,-458.73,0.00010999,2]
[360910132,1747140472368,-459.81503688,0.00010999,2]
[360910133,1747140472391,-400.0,0.00010999,2]
[360910134,1747140472415,-400.0,0.00010999,2]
[360910135,1747140472439,-992.04,0.00010999,2]
[360910136,1747140472463,-400.0,0.00010999,2]
[360910137,1747140472486,-400.0,0.00010999,2]
[360910138,1747140472510,-400.0,0.00010999,2]
[360910139,1747140472534,-400.0,0.00010999,2]
[360910140,1747140472557,-1344.72,0.00010999,2]
[360910141,1747140472580,-400.0,0.00010999,2]
[360910142,1747140472603,-400.0,0.00010999,2]
[360910143,1747140472626,-400.0,0.00010999,2]
[360910144,1747140472809,-400.0,0.00010999,2]
[360910145,1747140472834,-400.0,0.00010999,2]
[360910146,1747140472857,-400.0,0.00010999,2]
[360910147,1747140472884,-400.0,0.00010999,2]
[360910148,1747140472907,-400.0,0.00010999,2]
[360910149,1747140472929,-569.76,0.00010999,2]
[360910150,1747140472954,-400.0,0.00010999,2]
[360910151,1747140472977,-5232.25,0.00010999,2]
[360910152,1747140473000,-400.0,0.00010999,2]
[360910153,1747140473023,-400.0,0.00010999,2]
[360910154,1747140473046,-400.0,0.00010999,2]
[360910155,1747140473068,-400.0,0.00010999,2]
[360910156,1747140473091,-481.8,0.00010999,2]
[360910157,1747140473114,-400.0,0.00010999,2]
[360910158,1747140473137,-4997.83,0.00010999,2]
[360910159,1747140473160,-400.0,0.00010999,2]
[360910160,1747140473182,-400.0,0.00010999,2]
[360910161,1747140473206,-400.0,0.00010999,2]
[360910162,1747140473230,-1064.71,0.00010999,2]
[360910163,1747140473254,-499.02,0.00010999,2]
[360910164,1747140473278,-400.0,0.00010999,2]
[360910165,1747140473315,-555.9,0.00010999,2]
[360910166,1747140473340,-1360.4,0.00010999,2]
[360910167,1747140473364,-400.0,0.00010999,2]
[360910168,1747140473389,-719.39,0.00010999,2]
[360910169,1747140473414,-400.0,0.00010999,2]
[360910170,1747140473440,-400.0,0.00010999,2]
[360910171,1747140473468,-422.76702596,0.00010999,2]
[360910172,1747140473494,-400.0,0.00010999,2]
[360910173,1747140473519,-400.0,0.00010999,2]
[360910174,1747140473546,-400.0,0.00010999,2]
[360910175,1747140473571,-414.02129001,0.00010999,2]
[360910176,1747140473594,-231.93883553,0.00010999,2]
[360910177,1747140473619,-3147.7,0.00010999,2]
[360910178,1747140473643,-400.0,0.00010999,2]
[360910179,1747140473668,-567.53,0.00010999,2]
[360910180,1747140473693,-400.0,0.00010999,2]
[360910181,1747140473721,-400.0,0.00010999,2]
[360910182,1747140473746,-3008.05,0.00010999,2]
[360910183,1747140473771,-400.0,0.00010999,2]
[360910184,1747140473796,-400.0,0.00010999,2]
[360910185,1747140473821,-4226.98,0.00010999,2]
[360910186,1747140473844,-400.0,0.00010999,2]
[360910187,1747140473870,-825.61,0.00010999,2]
[360910188,1747140473895,-1310.19,0.00010999,2]
[360910189,1747140473920,-300.94722243,0.00010999,2]
[360910190,1747140473945,-400.0,0.00010999,2]
[360910191,1747140473976,-1461.48,0.00010999,2]
[360910192,1747140474000,-400.0,0.00010999,2]
[360910193,1747140474023,-400.0,0.00010999,2]
[360910194,1747140474047,-400.0,0.00010999,2]
[360910195,1747140474071,-400.0,0.00010999,2]
[360910196,1747140474095,-400.0,0.00010999,2]
[360910197,1747140474119,-400.0,0.00010999,2]
[360910198,1747140474143,-400.0,0.00010999,2]
[360910199,1747140474167,-400.0,0.00010999,2]
[360910200,1747140474191,-414.58,0.00010999,2]
[360910201,1747140474216,-400.0,0.00010999,2]
[360910202,1747140474240,-151.0,0.00010999,2]
[360910203,1747140474265,-400.0,0.00010999,2]
[360910204,1747140474289,-400.0,0.00010999,2]
[360910205,1747140474314,-434.82,0.00010999,2]
[360910206,1747140474341,-106803.52424817,0.00011,2]
[360910207,1747140474366,-222.08274683,0.00011,2]
[360910208,1747140474391,-2597944.39397394,0.00011,2]
[360910216,1747140618568,156.0,0.00028,120]
[360910217,1747140619142,301.68464931,0.00028,120]
[360910218,1747140620678,-1000.0,0.00010391,2]
[360910219,1747140620704,-247.64922239,0.00010889,2]
[360910220,1747140620732,-1200.0,0.00010899,2]
[360910221,1747140620761,-1088.9150572,0.000109,2]
[360910222,1747140620787,-4887.94493709,0.000109,2]
[360910223,1747140620812,-286.11875868,0.000109,2]
[360910224,1747140620839,-6214.81917368,0.000109,2]
[360910225,1747140620865,-2936.58023404,0.000109,2]
[360910226,1747140620892,-264.87585642,0.000109,2]
[360910227,1747140620920,-200.0,0.00010983,2]
[360910228,1747140620949,-695.16,0.00010998,2]
[360910229,1747140620977,-400.0,0.00010998,2]
[360910230,1747140621007,-991.2,0.00010998,2]
[360910231,1747140621034,-400.0,0.00010998,2]
[360910232,1747140621060,-400.0,0.00010998,2]
[360910233,1747140621088,-400.0,0.00010998,2]
[360910234,1747140621114,-400.0,0.00010998,2]
[360910235,1747140621139,-400.0,0.00010998,2]
[360910236,1747140621167,-400.0,0.00010998,2]
[360910237,1747140621194,-400.0,0.00010998,2]
[360910238,1747140621219,-400.0,0.00010998,2]
[360910239,1747140621245,-400.0,0.00010998,2]
[360910240,1747140621271,-400.0,0.00010998,2]
[360910241,1747140621297,-400.0,0.00010998,2]
[360910242,1747140621324,-573.67,0.00010998,2]
[360910243,1747140621351,-400.0,0.00010998,2]
[360910244,1747140621378,-473.19550001,0.00010998,2]
[360910245,1747140621405,-400.0,0.00010998,2]
[360910246,1747140621434,-400.0,0.00010998,2]
[360910247,1747140621461,-466.05754888,0.00010998,2]
[360910248,1747140621490,-739.55,0.00010998,2]
[360910249,1747140621518,-400.0,0.00010998,2]
[360910250,1747140621545,-293.97406199,0.00010998,2]
[360910251,1747140621572,-450.0,0.00010998,2]
[360910252,1747140621600,-400.0,0.00010998,2]
[360910253,1747140621626,-400.0,0.00010998,2]
[360910254,1747140621657,-400.0,0.00010998,2]
[360910255,1747140621686,-790.69,0.00010998,2]
[360910256,1747140621714,-975.17,0.00010998,2]
[360910257,1747140621740,-400.0,0.00010998,2]
[360910258,1747140621767,-400.0,0.00010998,2]
[360910259,1747140621794,-400.0,0.00010998,2]
[360910260,1747140621822,-450.0,0.00010998,2]
[360910261,1747140621854,-400.0,0.00010998,2]
[360910262,1747140621881,-400.0,0.00010998,2]
[360910263,1747140621910,-400.0,0.00010998,2]
[360910264,1747140621938,-400.0,0.00010998,2]
[360910265,1747140621971,-287.40214894,0.00010998,2]
[360910266,1747140622003,-465.2,0.00010998,2]
[360910267,1747140622031,-671.74,0.00010998,2]
[360910268,1747140622062,-2489.31,0.00010998,2]
[360910269,1747140622094,-366.0,0.00010998,2]
[360910270,1747140622123,-481.09,0.00010998,2]
[360910271,1747140622150,-400.0,0.00010998,2]
[360910272,1747140622178,-400.0,0.00010998,2]
[360910273,1747140622204,-400.0,0.00010998,2]
[360910274,1747140622231,-400.0,0.00010998,2]
[360910275,1747140622259,-1248.3,0.00010998,2]
[360910276,1747140622287,-400.0,0.00010998,2]
[360910277,1747140622313,-449.89789441,0.00010998,2]
[360910278,1747140622342,-400.0,0.00010998,2]
[360910279,1747140622370,-400.0,0.00010998,2]
[360910280,1747140622398,-774.21,0.00010998,2]
[360910281,1747140622425,-400.0,0.00010998,2]
[360910282,1747140622452,-1454.87,0.00010998,2]
[360910283,1747140622479,-400.0,0.00010998,2]
[360910284,1747140622507,-400.0,0.00010998,2]
[360910285,1747140622535,-400.0,0.00010998,2]
[360910286,1747140622562,-443.71,0.00010998,2]
[360910287,1747140622591,-400.0,0.00010998,2]
[360910288,1747140622620,-589.443693,0.00010998,2]
[360910289,1747140622647,-457.21889492,0.00010998,2]
[360910290,1747140622674,-5398.600332,0.00010998,2]
[360910291,1747140622700,-400.0,0.00010998,2]
[360910292,1747140622726,-400.0,0.00010998,2]
[360910293,1747140622752,-400.0,0.00010998,2]
[360910294,1747140622779,-279.52119068,0.00010998,2]
[360910295,1747140622805,-400.0,0.00010998,2]
[360910296,1747140622832,-400.0,0.00010998,2]
[360910297,1747140622859,-400.0,0.00010998,2]
[360910298,1747140622889,-688.7,0.00010998,2]
[360910299,1747140622919,-400.0,0.00010998,2]
[360910300,1747140622947,-1597.95,0.00010999,2]
[360910301,1747140622975,-400.0,0.00010999,2]
[360910302,1747140623000,-400.0,0.00010999,2]
[360910303,1747140623028,-1076.04,0.00010999,2]
[360910304,1747140623056,-400.0,0.00010999,2]
[360910305,1747140623083,-1000.0,0.00010999,2]
[360910306,1747140623109,-150.0,0.00010999,2]
[360910307,1747140623136,-553.36,0.00010999,2]
[360910308,1747140623162,-668.55,0.00010999,2]
[360910309,1747140623188,-400.0,0.00010999,2]
[360910310,1747140623217,-400.0,0.00010999,2]
[360910311,1747140623444,-400.0,0.00010999,2]
[360910312,1747140623472,-999.28,0.00010999,2]
[360910313,1747140623499,-400.0,0.00010999,2]
[360910314,1747140623530,-400.0,0.00010999,2]
[360910315,1747140623557,-521.13568043,0.00010999,2]
[360910316,1747140623586,-400.0,0.00010999,2]
[360910317,1747140623614,-406.77566497,0.00010999,2]
[360910318,1747140623642,-799.81,0.00010999,2]
[360910319,1747140623671,-529.56,0.00010999,2]
[360910320,1747140623699,-621.78,0.00010999,2]
[360910321,1747140623728,-400.0,0.00010999,2]
[360910322,1747140623758,-400.0,0.00010999,2]
[360910323,1747140623785,-417.03,0.00010999,2]
[360910324,1747140623811,-400.0,0.00010999,2]
[360910325,1747140623840,-616.29,0.00010999,2]
[360910326,1747140623868,-400.0,0.00010999,2]
[360910327,1747140623898,-508.64,0.00010999,2]
[360910328,1747140623924,-400.0,0.00010999,2]
[360910329,1747140623951,-1682.13,0.00010999,2]
[360910330,1747140623978,-435.21,0.00010999,2]
[360910331,1747140624006,-400.0,0.00010999,2]
[360910332,1747140624033,-400.0,0.00010999,2]
[360910333,1747140624059,-677.98,0.00010999,2]
[360910334,1747140624094,-400.0,0.00010999,2]
[360910335,1747140624121,-1682.54,0.00010999,2]
[360910336,1747140624148,-400.0,0.00010999,2]
[360910337,1747140624175,-400.0,0.00010999,2]
[360910338,1747140624202,-400.0,0.00010999,2]
[360910339,1747140624230,-464.74,0.00010999,2]
[360910340,1747140624260,-580.57,0.00010999,2]
[360910341,1747140624289,-515.24,0.00010999,2]
[360910342,1747140624318,-414.02653806,0.00010999,2]
[360910343,1747140624346,-527.59,0.00010999,2]
[360910344,1747140624374,-2325.51,0.00010999,2]
[360910345,1747140624402,-400.0,0.00010999,2]
[360910346,1747140624428,-400.0,0.00010999,2]
[360910347,1747140624456,-687.42,0.00010999,2]
[360910348,1747140624493,-954.34,0.00010999,2]
[360910349,1747140624521,-400.0,0.00010999,2]
[360910350,1747140624550,-1576.8,0.00010999,2]
[360910351,1747140624579,-1296.76,0.00010999,2]
[360910352,1747140624605,-438.84,0.00010999,2]
[360910353,1747140624632,-400.0,0.00010999,2]
[360910354,1747140624659,-1444.51,0.00010999,2]
[360910355,1747140624685,-400.0,0.00010999,2]
[360910356,1747140624712,-400.0,0.00010999,2]
[360910357,1747140624740,-514.6,0.00010999,2]
[360910358,1747140624767,-400.0,0.00010999,2]
[360910359,1747140624794,-400.0,0.00010999,2]
[360910360,1747140624821,-66256.58,0.00010999,2]
[360910361,1747140624850,-400.0,0.00010999,2]
[360910362,1747140624877,-504.01,0.00010999,2]
[360910363,1747140624906,-400.0,0.00010999,2]
[360910364,1747140624934,-308.03,0.00010999,2]
[360910365,1747140624962,-400.0,0.00010999,2]
[360910366,1747140624993,-868.95,0.00010999,2]
[360910367,1747140625021,-400.0,0.00010999,2]
[360910368,1747140625049,-400.0,0.00010999,2]
[360910369,1747140625076,-400.0,0.00010999,2]
[360910370,1747140625104,-400.0,0.00010999,2]
[360910371,1747140625131,-151.0,0.00010999,2]
[360910372,1747140625157,-400.0,0.00010999,2]
[360910373,1747140625187,-1942.7,0.00010999,2]
[360910374,1747140625216,-1797.94,0.00010999,2]
[360910375,1747140625243,-400.0,0.00010999,2]
[360910376,1747140625269,-400.0,0.00010999,2]
[360910377,1747140625296,-4535.45,0.00010999,2]
[360910378,1747140625323,-400.0,0.00010999,2]
[360910379,1747140625351,-400.0,0.00010999,2]
[360910380,1747140625378,-400.0,0.00010999,2]
[360910381,1747140625404,-1529.09,0.00010999,2]
[360910382,1747140625432,-400.0,0.00010999,2]
[360910383,1747140625461,-400.0,0.00010999,2]
[360910384,1747140625487,-400.0,0.00010999,2]
[360910385,1747140625515,-184.40037269,0.00010999,2]
[360910386,1747140625541,-400.0,0.00010999,2]
[360910387,1747140625567,-2146.1,0.00010999,2]
[360910388,1747140625595,-400.0,0.00010999,2]
[360910389,1747140625623,-1118.05,0.00010999,2]
[360910390,1747140625650,-1400.59,0.00010999,2]
[360910391,1747140625677,-400.0,0.00010999,2]
[360910392,1747140625704,-420.72,0.00010999,2]
[360910393,1747140626085,-1000.0,0.00010999,2]
[360910394,1747140626096,-247.64922239,0.00010999,2]
[360910395,1747140626107,-1200.0,0.00010999,2]
[360910396,1747140626118,-1088.9150572,0.00010999,2]
[360910397,1747140626141,-4887.94493709,0.00010999,2]
[360910398,1747140626152,-286.11875868,0.00010999,2]
[360910399,1747140626167,-6214.81917368,0.00010999,2]
[360910400,1747140626178,-2936.58023404,0.00010999,2]
[360910401,1747140626190,-264.87585642,0.00010999,2]
[360910402,1747140626201,-200.0,0.00010999,2]
[360910403,1747140626212,-695.16,0.00010999,2]
[360910404,1747140626223,-400.0,0.00010999,2]
[360910405,1747140626244,-991.2,0.00010999,2]
[360910406,1747140626287,-400.0,0.00010999,2]
[360910407,1747140626298,-400.0,0.00010999,2]
[360910408,1747140626317,-400.0,0.00010999,2]
[360910409,1747140626328,-400.0,0.00010999,2]
[360910410,1747140626339,-400.0,0.00010999,2]
[360910411,1747140626350,-400.0,0.00010999,2]
[360910412,1747140626360,-400.0,0.00010999,2]
[360910413,1747140626372,-352.0167605,0.00010999,2]
[360910414,1747140626381,-47.9832395,0.00010999,2]
[360910415,1747140626400,-400.0,0.00010999,2]
[360910416,1747140626420,-400.0,0.00010999,2]
[360910417,1747140626645,-361.1367605,0.00010999,2]
[360910418,1747140626655,-38.8632395,0.00010999,2]
[360910419,1747140626666,-361.1367605,0.00010999,2]
[360910420,1747140626676,-212.5332395,0.00010999,2]
[360910421,1747140626688,-187.4667605,0.00010999,2]
[360910422,1747140626698,-212.5332395,0.00010999,2]
[360910423,1747140626709,-187.4667605,0.00010999,2]
[360910424,1747140626718,-285.72873951,0.00010999,2]
[360910425,1747140626730,-114.27126049,0.00010999,2]
[360910426,1747140626739,-285.72873951,0.00010999,2]
[360910427,1747140626759,-328.37126049,0.00010999,2]
[360910428,1747140626770,-71.62873951,0.00011,2]
[360910429,1747140626782,-466.05754888,0.00011,2]
[360910430,1747140626805,-739.55,0.00011,2]
[360910431,1747140626820,-400.0,0.00011,2]
[360910432,1747140626832,-293.97406199,0.00011,2]
[360910433,1747140626850,-450.0,0.00011,2]
[360910434,1747140626861,-400.0,0.00011,2]
[360910435,1747140626881,-151.0,0.00010999,2]
[360910436,1747140626891,-249.0,0.00011,2]
[360910437,1747140626906,-400.0,0.00011,2]
[360910438,1747140626917,-790.69,0.00011,2]
[360910439,1747140626932,-975.17,0.00011,2]
[360910440,1747140626945,-400.0,0.00011,2]
[360910441,1747140626956,-400.0,0.00011,2]
[360910442,1747140626972,-400.0,0.00011,2]
[360910443,1747140626992,-450.0,0.00011,2]
[360910444,1747140627004,-400.0,0.00011,2]
[360910445,1747140627022,-400.0,0.00011,2]
[360910446,1747140627034,-400.0,0.00011,2]
[360910447,1747140627053,-400.0,0.00011,2]
[360910448,1747140627066,-287.40214894,0.00011,2]
[360910449,1747140627084,-465.2,0.00011,2]
[360910450,1747140627104,-671.74,0.00011,2]
[360910451,1747140627126,-2489.31,0.00011,2]
[360910452,1747140627141,-366.0,0.00011,2]
[360910453,1747140627153,-481.09,0.00011,2]
[360910454,1747140627169,-400.0,0.00011,2]
[360910455,1747140627187,-400.0,0.00011,2]
[360910456,1747140627198,-400.0,0.00011,2]
[360910457,1747140627209,-400.0,0.00011,2]
[360910458,1747140627243,-38554.94962477,0.00011,2]
[360910459,1747140627268,-1248.3,0.00011,2]
[360910460,1747140627280,-400.0,0.00011,2]
[360910461,1747140627291,-449.89789441,0.00011,2]
[360910462,1747140627307,-400.0,0.00011,2]
[360910463,1747140627319,-400.0,0.00011,2]
[360910464,1747140627334,-774.21,0.00011,2]
[360910465,1747140627357,-400.0,0.00011,2]
[360910466,1747140627369,-1454.87,0.00011,2]
[360910467,1747140627380,-400.0,0.00011,2]
[360910468,1747140627410,-400.0,0.00011,2]
[360910469,1747140627433,-400.0,0.00011,2]
[360910470,1747140627444,-443.71,0.00011,2]
[360910471,1747140627455,-400.0,0.00011,2]
[360910472,1747140627467,-589.443693,0.00011,2]
[360910473,1747140627488,-457.21889492,0.00011,2]
[360910474,1747140627506,-5398.600332,0.00011,2]
[360910475,1747140627518,-400.0,0.00011,2]
[360910476,1747140627533,-400.0,0.00011,2]
[360910477,1747140627544,-400.0,0.00011,2]
[360910478,1747140627556,-279.52119068,0.00011,2]
[360910479,1747140627567,-400.0,0.00011,2]
[360910480,1747140627585,-400.0,0.00011,2]
[360910481,1747140627597,-400.0,0.00011,2]
[360910482,1747140627608,-688.7,0.00011,2]
[360910483,1747140627626,-400.0,0.00011,2]
[360910484,1747140627642,-1597.95,0.00011,2]
[360910485,1747140627690,-400.0,0.00011,2]
[360910486,1747140627750,-400.0,0.00011,2]
[360910487,1747140627771,-1076.04,0.00011,2]
[360910488,1747140627786,-400.0,0.00011,2]
[360910489,1747140627797,-1000.0,0.00011,2]
[360910490,1747140627808,-150.0,0.00011,2]
[360910491,1747140627819,-553.36,0.00011,2]
[360910492,1747140627843,-668.55,0.00011,2]
[360910493,1747140627854,-400.0,0.00011,2]
[360910494,1747140627865,-400.0,0.00011,2]
[360910495,1747140627887,-400.0,0.00011,2]
[360910496,1747140627922,-999.28,0.00011,2]
[360910497,1747140627939,-400.0,0.00011,2]
[360910498,1747140627960,-400.0,0.00011,2]
[360910499,1747140628045,-521.13568043,0.00011,2]
[360910500,1747140628071,-400.0,0.00011,2]
[360910501,1747140628085,-406.77566497,0.00011,2]
[360910502,1747140628100,-799.81,0.00011,2]
[360910503,1747140628119,-529.56,0.00011,2]
[360910504,1747140628134,-621.78,0.00011,2]
[360910505,1747140628149,-400.0,0.00011,2]
[360910506,1747140628167,-400.0,0.00011,2]
[360910507,1747140628182,-417.03,0.00011,2]
[360910508,1747140628197,-400.0,0.00011,2]
[360910509,1747140628209,-616.29,0.00011,2]
[360910510,1747140628220,-400.0,0.00011,2]
[360910511,1747140628235,-508.64,0.00011,2]
[360910512,1747140628252,-400.0,0.00011,2]
[360910513,1747140628270,-1682.13,0.00011,2]
[360910514,1747140628286,-435.21,0.00011,2]
[360910515,1747140628297,-400.0,0.00011,2]
[360910516,1747140628315,-400.0,0.00011,2]
[360910517,1747140628340,-677.98,0.00011,2]
[360910518,1747140628355,-400.0,0.00011,2]
[360910519,1747140628369,-1682.54,0.00011,2]
[360910520,1747140628389,-400.0,0.00011,2]
[360910521,1747140628406,-400.0,0.00011,2]
[360910522,1747140628418,-400.0,0.00011,2]
[360910523,1747140628429,-464.74,0.00011,2]
[360910524,1747140628445,-580.57,0.00011,2]
[360910525,1747140628456,-515.24,0.00011,2]
[360910526,1747140628467,-414.02653806,0.00011,2]
[360910527,1747140628488,-527.59,0.00011,2]
[360910528,1747140628503,-2325.51,0.00011,2]
[360910529,1747140628514,-400.0,0.00011,2]
[360910530,1747140628532,-400.0,0.00011,2]
[360910531,1747140628547,-687.42,0.00011,2]
[360910532,1747140628558,-954.34,0.00011,2]
[360910533,1747140628570,-400.0,0.00011,2]
[360910534,1747140628590,-1576.8,0.00011,2]
[360910535,1747140628608,-1296.76,0.00011,2]
[360910536,1747140628643,-438.84,0.00011,2]
[360910537,1747140628699,-400.0,0.00011,2]
[360910538,1747140628749,-1444.51,0.00011,2]
[360910539,1747140628761,-400.0,0.00011,2]
[360910540,1747140628772,-400.0,0.00011,2]
[360910541,1747140628787,-514.6,0.00011,2]
[360910542,1747140628802,-400.0,0.00011,2]
[360910543,1747140628813,-400.0,0.00011,2]
[360910544,1747140628824,-66256.58,0.00011,2]
[360910545,1747140628836,-400.0,0.00011,2]
[360910546,1747140628851,-504.01,0.00011,2]
[360910547,1747140628862,-400.0,0.00011,2]
[360910548,1747140628880,-308.03,0.00011,2]
[360910549,1747140628907,-154.788367,0.00010999,2]
[360910550,1747140628917,-245.211633,0.00011,2]
[360910551,1747140628932,-868.95,0.00011,2]
[360910552,1747140628953,-400.0,0.00011,2]
[360910553,1747140628964,-400.0,0.00011,2]
[360910554,1747140628991,-400.0,0.00011,2]
[360910555,1747140629002,-400.0,0.00011,2]